Cogmind - Beta 14 @@@ ROGUE MODE // 2025.05.05 @ 19:15:00 Player: _An Result: Destroyed by H-55 Commando with Gauss Rifle Performance ------------- Evolutions (2) 1000 Regions Visited (4) 800 Robots Destroyed (19) 95 Value Destroyed (484) 484 Prototype IDs (3) 60 Alien Tech Used (0) 0 Bonus (0) 0 TOTAL SCORE: 2439 Bonus ------- None Cogmind --------- Core Integrity 0/550 Matter 132/300 Energy 87/100 System Corruption 0% Temperature Cool (0) Movement Core (50) Location -8/Materials Parts ------- > --- POWER (1) -------- (None) > --- PROPULSION (4) --- (None) > --- UTILITY (4) ------ (None) > --- WEAPON (2) ------- (None) > --- INVENTORY (5) ---- VTOL Module Visual Processing Unit Sensor Array Hacking Suite High-powered Tractor Beam Peak State ------------ > --- POWER ------------ Light Nuclear Core > --- PROPULSION ------- Hover Unit Airjet > --- UTILITY ---------- Medium Storage Unit Weight Redist. System Trap Scanner Sensor Array > --- WEAPON ----------- Improved Assault Rifle > --- INVENTORY -------- Light Treads Aluminum Leg Compact Wheel VTOL Module Visual Processing Unit Sensor Array High-powered Tractor Beam Assault Rifle High-powered Shotgun Grenade Launcher [Rating: 18] Favorites ----------- Power Light Nuclear Core Engine Ion Engine Power Core Light Nuclear Core Propulsion Aluminum Leg Treads Light Treads Leg Aluminum Leg Wheel Compact Wheel Hover Unit Hover Unit Utility Medium Storage Unit Device Sensor Array Storage Medium Storage Unit Processor Terrain Scan Processor Protection Propulsion Shielding Weapon Assault Rifle Energy Gun Medium Laser Energy Cannon EM Pulse Cannon Ballistic Gun Assault Rifle Launcher Grenade Launcher Build | -11 -10 -10 -9 -8 ------- Run | Yrd Mat Min Mat Mat Slots Evolved 4 | . . . 2 2 Power . | . . . . . Propulsion 2 | . . . 1 1 Utility 2 | . . . 1 1 Weapon . | . . . . . Parts Attached 48 | 6 7 15 7 13 Power 8 | 1 2 2 1 2 Engine 4 | 1 1 1 . 1 Core 4 | . 1 1 1 1 Reactor . | . . . . . Propulsion 15 | 2 2 7 2 2 Treads 5 | . 2 2 . 1 Leg 5 | 2 . 2 . 1 Wheel 1 | . . 1 . . Hover 4 | . . 2 2 . Flight . | . . . . . Utility 12 | 1 2 2 2 5 Device 7 | . 1 2 1 3 Storage 2 | 1 1 . . . Processor 2 | . . . 1 1 Hackware . | . . . . . Protection 1 | . . . . 1 Artifact . | . . . . . Weapon 13 | 2 1 4 2 4 Energy Gun 1 | 1 . . . . Energy Cannon 2 | . . 2 . . Ballistic Gun 9 | 1 1 2 2 3 Ballistic Cannon . | . . . . . Launcher 1 | . . . . 1 Special Weapon . | . . . . . Impact Weapon . | . . . . . Slashing Weapon . | . . . . . Piercing Weapon . | . . . . . Special Melee Weapon . | . . . . . Unidentified Prototypes 1 | . . . 1 . Parts Lost 18 | . 3 5 . 10 Power 3 | . 1 1 . 1 Propulsion 7 | . 2 1 . 4 Utility 3 | . . 1 . 2 Weapon 5 | . . 2 . 3 Highest Loss Streak 10 | . 3 2 . 10 To Critical Strikes . | . . . . . Average Slot Usage (%) 82 | . 92 89 60 50 Engine 4 | . 1 11 . . Core 5 | . 8 . 5 5 Treads 4 | . 8 2 . 1 Leg 14 | . 19 17 . 2 Hover 4 | . . 4 22 10 Device 12 | . 11 10 16 16 Storage 12 | . 14 14 11 8 Energy Gun 6 | . 14 . . . Energy Cannon 3 | . . 10 . . Ballistic Gun 11 | . 13 12 3 2 Peak Build Rating 18 | 6 10 14 16 18 Average Rating 10 | 4 8 11 10 11 On Entrance 7 | . 6 8 9 15 Naked Turns 11 | . . . . 11 Heaviest Build 25 | 14 24 25 19 21 Greatest Support 40 | 20 40 40 20 26 Greatest Overweight (x) 3 | 2 1 2 1 3 Average Overweight (x) . | . . . . . Largest Inventory Capacity 10 | 8 10 10 10 10 Average Capacity 9 | 6 9 10 10 9 Most Carried 10 | 6 10 10 10 10 Average Carried 8 | 3 9 9 9 8 Final Capacity 10 | 8 10 10 10 5 Final Carried 10 | 6 9 7 10 5 Class Distribution -------------------- 100% | Mutant Dominant Class ---------------- Mutant | -10/Materials Mutant | -10/Mines Mutant | -9/Materials Mutant | -8/Materials Resources | -11 -10 -10 -9 -8 ----------- Run | Yrd Mat Min Mat Mat Matter Collected 671 | 260 171 135 105 . Remotely . | . . . . . Salvage Created 597 | . 428 150 . 19 Parts 49 | . 32 14 . 3 Haulers Intercepted . | . . . . . Recyclers Shooed 1 | . 1 . . . Parts Field Recycled . | . . . . . Retrieved Matter . | . . . . . Parts Self-Destructed . | . . . . . Prevented . | . . . . . Kills | -11 -10 -10 -9 -8 ------- Run | Yrd Mat Min Mat Mat Combat Hostiles Destroyed 17 | . 10 5 . 2 Guns 15 | . 10 4 . 1 Cannons 1 | . . 1 . . AOE 1 | . . . . 1 Classes Destroyed 4 | . 4 . . . Recycler 1 | . 1 . . . Watcher 1 | . 1 . . . Swarmer 7 | . 3 2 . 2 Grunt 10 | . 7 3 . . Best Kill Streak 4 | . 4 3 . 2 Combat Bots Only 4 | . 4 3 . 2 Max Kills in Single Turn 1 | . 1 1 . 1 Gunslinging . | . . . . . Exploded 1 | . . . . 1 Melee . | . . . . . Uniques/NPCs Destroyed . | . . . . . Combat | -11 -10 -10 -9 -8 -------- Run | Yrd Mat Min Mat Mat Hostile Shots Fired 298 | . 61 48 13 176 Missed 99 | . 21 14 8 56 Damage Taken 2276 | . 517 433 64 1262 Core 736 | . 77 70 21 568 Absorbed by Shields . | . . . . . Redirected to Shielding 50 | . . . . 50 Core Remaining (%) 78 | 100 . 41 94 . Volleys Fired 71 | . 42 23 . 6 Largest 2 | . 2 2 . 2 Hottest 88 | . 70 88 . 53 Shots Fired 118 | . 84 27 . 7 Gun 111 | . 84 23 . 4 Cannon 4 | . . 4 . . Launcher 3 | . . . . 3 Special . | . . . . . Kinetic 69 | . 42 23 . 4 Thermal 42 | . 42 . . . Explosive 3 | . . . . 3 Electromagnetic 4 | . . 4 . . Robot Hit Streak 9 | . 7 9 . 2 Robot Miss Streak 7 | . 7 3 . 1 Penetration Max . | . . . . . Secondary Targets 3 | . 3 . . . Max Gunslinging Chain 1 | . 1 . . . Shots Hit Robots 63 | . 44 17 . 2 Core Hits 35 | . 22 9 . 4 Critical Kills 1 | . 1 . . . Critical Parts Destroyed . | . . . . . Critical Strikes 3 | . 3 . . . Burn 2 | . 2 . . . Destroy 1 | . 1 . . . Melee Attacks . | . . . . . Impact . | . . . . . Slashing . | . . . . . Piercing . | . . . . . Sneak Attacks . | . . . . . Combat Hostiles . | . . . . . Follow-up Attacks . | . . . . . Damage Inflicted 891 | . 585 242 . 64 Guns 811 | . 577 191 . 43 Cannons 51 | . . 51 . . Explosions 18 | . . . . 18 Melee . | . . . . . Ramming 11 | . 8 . . 3 Kinetic 513 | . 279 191 . 43 Thermal 298 | . 298 . . . Explosive 18 | . . . . 18 Electromagnetic 51 | . . 51 . . Impact . | . . . . . Slashing . | . . . . . Piercing . | . . . . . Highest Corruption 1 | . 1 1 . . Average Corruption 1 | . 1 1 . . Corruption Purged . | . . . . . Corruption Blocked . | . . . . . Effects 8 | . 5 3 . . Matter Fused 2 | . . 2 . . Heat Flow Errors 1 | . 1 . . . Data Loss (minor) 4 | . 3 1 . . Data Loss (major) 1 | . 1 . . . Overload Shots . | . . . . . Overflow Damage . | . . . . . Projectiles . | . . . . . Explosions . | . . . . . Melee . | . . . . . Knockbacks . | . . . . . Impact . | . . . . . Kinetic . | . . . . . Secondary . | . . . . . Self-Inflicted Damage 33 | . . . . 33 Shots 2 | . . . . 2 Rammed 2 | . . . . 2 Targets Rammed 3 | . 1 . . 2 Kicked 1 | . 1 . . . Crushed . | . . . . . Highest Temperature 243 | . 243 118 12 . Average Temperature 57 | . 57 66 12 . Received Heat Transfer 573 | . 258 114 57 144 Siege Activations . | . . . . . Robots Corrupted . | . . . . . Combat Hostiles . | . . . . . Parts Fried . | . . . . . Impact Corruptions . | . . . . . Robots Melted . | . . . . . Combat Hostiles . | . . . . . Parts Melted 1 | . 1 . . . Heat Transferred 1036 | . 1036 . . . Parts Sabotaged . | . . . . . Parts Stolen . | . . . . . Parts Stripped . | . . . . . Power Chain Reactions . | . . . . . Alert | -11 -10 -10 -9 -8 ------- Run | Yrd Mat Min Mat Mat Peak Influence 187 | . 159 150 148 187 Initial 62 | . . 61 58 62 Average 66 | . 77 51 71 84 Maximum Alert Level . | . . . . . Low Security (%) 100 | 100 100 100 100 100 Level 1 . | . . . . . Level 2 . | . . . . . Level 3 . | . . . . . Level 4 . | . . . . . Level 5 . | . . . . . High Security . | . . . . . Max Security . | . . . . . Squads Dispatched 7 | . 3 . 2 2 Investigation 2 | . 2 . . . Extermination . | . . . . . Reinforcement 5 | . 1 . 2 2 Assault . | . . . . . Garrison . | . . . . . Intercept . | . . . . . Searches Triggered . | . . . . . Construction Impeded . | . . . . . Haulers Reinforced . | . . . . . Active Scanning Responses . | . . . . . Cargo Convoy Interrupts . | . . . . . Stealth | -11 -10 -10 -9 -8 --------- Run | Yrd Mat Min Mat Mat Distress Signals 5 | . 2 . . 3 Communications Jammed . | . . . . . Distress Signals . | . . . . . Times Spotted 55 | . 19 9 9 18 Peak Tracking Total 9 | . 5 5 5 9 Tactical Retreats 9 | . 2 2 2 3 Traps | -11 -10 -10 -9 -8 ------- Run | Yrd Mat Min Mat Mat Traps Triggered 6 | . 4 2 . . Indirectly . | . . . . . Trap Hack Attempts . | . . . . . Triggered . | . . . . . Disarmed . | . . . . . Reprogrammed . | . . . . . Reused . | . . . . . Traps Extracted . | . . . . . Installed . | . . . . . Triggered . | . . . . . Machines | -11 -10 -10 -9 -8 ---------- Run | Yrd Mat Min Mat Mat Machines Disabled . | . . . . . Max in Single Turn . | . . . . . Machines Repaired . | . . . . . Machines Dismantled . | . . . . . Machines Sabotaged . | . . . . . Overloaded Fab Kills . | . . . . . Hacking | -11 -10 -10 -9 -8 --------- Run | Yrd Mat Min Mat Mat Machines Accessed 10 | . 6 1 1 2 Terminals 8 | . 5 . 1 2 Fabricators . | . . . . . Repair Stations . | . . . . . Recycling Units 1 | . 1 . . . Scanalyzers . | . . . . . Garrison Access . | . . . . . Total Hacks 28 | . 18 1 2 7 Successful 17 | . 9 1 1 6 Failed 11 | . 9 . 1 1 Catastrophic . | . . . . . Database Lockouts . | . . . . . Manual 23 | . 16 . 1 6 Terminals 23 | . 14 . 2 7 Fabricators . | . . . . . Repair Stations . | . . . . . Recycling Units 4 | . 4 . . . Scanalyzers . | . . . . . Garrison Access . | . . . . . Terminal Hacks 6 | . 2 1 . 3 Prototype ID Bank 1 | . . . . 1 Open Door 1 | . . 1 . . Unreport Threat 2 | . 1 . . 1 Zone Layout 2 | . 1 . . 1 Fabricator Hacks . | . . . . . Repair Station Hacks . | . . . . . Recycling Unit Hacks . | . . . . . Scanalyzer . | . . . . . Garrison Access Hacks . | . . . . . Unauthorized Hacks 11 | . 7 . 1 3 Terminals 9 | . 5 . 1 3 Assimilate 3 | . 2 . . 1 Botnet 6 | . 3 . 1 2 Fabricators . | . . . . . Repair Stations . | . . . . . Recycling Units 2 | . 2 . . . Monitor 1 | . 1 . . . Reject 1 | . 1 . . . Scanalyzers . | . . . . . Garrison Access . | . . . . . Data Cores Recovered . | . . . . . Used . | . . . . . Hacking Detections 6 | . 4 . 1 1 Full Trace Events . | . . . . . Feedback Events . | . . . . . Feedback Blocked . | . . . . . Robot Schematics Acquired . | . . . . . Robots Built . | . . . . . Authchips . | . . . . . Time . | . . . . . Total Robot Build Rating . | . . . . . Part Schematics Acquired . | . . . . . Parts Built . | . . . . . Authchips . | . . . . . Time . | . . . . . Total Part Build Rating . | . . . . . Parts Repaired . | . . . . . Time . | . . . . . Parts Recycled . | . . . . . Recycled Matter . | . . . . . Retrieved Matter . | . . . . . Retrieved Components . | . . . . . Parts Scanalyzed . | . . . . . Part Schematics Acquired . | . . . . . Parts Damaged . | . . . . . Bothacking | -11 -10 -10 -9 -8 ------------ Run | Yrd Mat Min Mat Mat Used RIF Installer . | . . . . . Robots Hacked . | . . . . . Non-combat . | . . . . . Combat . | . . . . . Robot Hacks Applied . | . . . . . Relay Couplers Released . | . . . . . Fabnet Peak Effective % . | . . . . . Robots Rewired . | . . . . . Allies Hacked . | . . . . . Hacks Repelled . | . . . . . Allies | -11 -10 -10 -9 -8 -------- Run | Yrd Mat Min Mat Mat Total Allies . | . . . . . Largest Group . | . . . . . Highest-Rated Group . | . . . . . Highest-Rated Ally . | . . . . . Total Orders . | . . . . . Ally Attacks . | . . . . . Total Damage . | . . . . . Kills . | . . . . . Allies Corrupted . | . . . . . Allies Melted . | . . . . . Intel | -11 -10 -10 -9 -8 ------- Run | Yrd Mat Min Mat Mat Robot Analysis Total . | . . . . . Derelict Logs Recovered 1 | . . 1 . . Drone Launches . | . . . . . Drone Recoveries . | . . . . . Exploration | -11 -10 -10 -9 -8 ------------- Run | Yrd Mat Min Mat Mat Turns Passed 1869 | 88 798 585 132 266 Spaces Moved 1356 | 64 467 336 190 299 Core 45 | 16 . . . 29 Treads 156 | . 141 6 . 9 Legs 593 | 48 326 189 . 30 Wheels 20 | . . 20 . . Hover 542 | . . 121 190 231 Flight . | . . . . . Fastest Speed 50 | 50 120 56 56 50 Average Speed 111 | 115 132 148 59 71 Slowest Speed 260 | 150 190 260 116 200 Overloaded Moves . | . . . . . Propulsion Burnouts . | . . . . . Robots Hopped . | . . . . . Cave-ins Triggered . | . . . . . Exploration Rate (%) 33 | 5 70 47 23 24 Regions Visited 4 Branch Regions 1 Pre-discovered Areas . | . . . . . Known Exits Taken . | . . . . . Unknown Exits Taken 4 | 1 1 1 1 . Scrap Searched . | . . . . . Spaces Dug 8 | . . . . 8 Terrain Destroyed 20 | . . . . 20 Melee . | . . . . . Projectile . | . . . . . AOE 20 | . . . . 20 Terrain Rammed . | . . . . . Walls Destroyed . | . . . . . Machines Disabled . | . . . . . Actions | -11 -10 -10 -9 -8 --------- Run | Yrd Mat Min Mat Mat Total 1596 | 75 566 401 211 343 Wait 62 | . 37 9 5 11 Move 1352 | 63 466 335 189 299 Hop . | . . . . . Pick Up 24 | 6 7 6 3 2 Fast Attach 22 | 6 3 4 3 6 Attach 26 | . 4 11 4 7 Detach 17 | . 3 5 6 3 Swap . | . . . . . Drop 19 | . 3 8 1 7 Fire 71 | . 42 23 . 6 Melee . | . . . . . Ram 1 | . . . . 1 Kick 1 | . 1 . . . Crush 1 | . . . . 1 Escape Stasis . | . . . . . Rewire . | . . . . . Trap . | . . . . . Miscellaneous . | . . . . . Route ------- -11/Scrapyard -10/Materials (discovered 3 exits: *Mat x2 / *Min) -10/Mines -9/Materials (discovered 2 exits: *Mat / Min) -8/Materials History --------- Turn | Location | Event 20 | -11/Scrapyard | Discovered new exit (range 15) 89 | -11/Scrapyard | Entered Materials 314 | -10/Materials | Build established: Mutant 517 | -10/Materials | Discovered new exit (range 11) 682 | -10/Materials | Lost 3 parts (1p2n) 685 | -10/Materials | Discovered new exit (range 16) 870 | -10/Materials | Discovered new exit (range 11) 887 | -10/Materials | Entered Mines 890 | -10/Mines | Met a Derelict who couldn't figure out how to use a Trap Extractor 1372 | -10/Mines | Discovered new exit (range 11) 1415 | -10/Mines | Core integrity fell below 50% 1472 | -10/Mines | Entered Materials 1472 | -9/Materials | Evolved 2 slots: Propulsion x1, Utility x1 1473 | -9/Materials | Identified exit to Mines 1596 | -9/Materials | Discovered new exit (range 16) 1604 | -9/Materials | Entered another Materials area 1604 | -8/Materials | Evolved 2 slots: Propulsion x1, Utility x1 1822 | -8/Materials | Core integrity fell below 50% 1852 | -8/Materials | Core integrity fell below 20% 1859 | -8/Materials | Released all parts (2) 1870 | -8/Materials | Destroyed by H-55 Commando with Gauss Rifle Last Messages --------------- Grenade Launcher destroyed. ALERT: Hostiles spotted, dispatching reinforcements to Terminal M006. U-05 Engineer lays Concrete. Hpw. Shotgun destroyed. U-05 Engineer lays Concrete. U-05 Engineer builds a Wall. S-10 Pest destroyed. Aluminum Leg destroyed. Slammed into S-10 Pest. Propulsion Shielding destroyed. T-07 Excavator is excavating. Imp. Assault Rifle destroyed. Slammed into Y-45 Defender. Lgt. Treads destroyed. Released Weight Redist. System. Released Med. Storage Unit. K-01 Serf collects debris. Slug penetrates Wall. K-01 Serf collects debris. Map ----- +----------------------------------------------------+ | ?????????????????????????????????????????????????? | | ?????????????????????????????????????????????????? | | ?????????????????????????????????????????????????? | | ?????????????????????????????????????????????????? | | ???????????????????????????????????????????????### | | ???????????????????????????????????????????????# | | ???????????????????????????????????????????????# | | ???????????????????????????????????????????????# | | ?????????????????????????????????????????????#?# | | ?????????????????????????????????????????????# # | | ?????????????????????????????? ??????????????# # | | ????????????????????????????? ##????????????# # | | ????????????????????????????? #????????????# # | | ????????????????????? ## ## # # | | ????????????????????? ## ## #/### | | ?????????????????????+####### ## ## """ # !! | | ????????????????????? #??# ## ## """ # !! | | ????????????????????? #??# ## ## """ # !! | | ????????????????????? #??# ## ## # | | ????????????????????? #??# ## ## # | | #########???????????? #### ## ## # | | #######?????? ## # ## ####+### | | # ############## ###+### ###+# | | """ # % ! | | """"" / h T | | """"" # k @o | | """"" # ###+########## a ###+### ### # | | """ !! ### ### ?#########+#### #######?# # | | #?# #?#" ## # T # #?# # | | #####/###?# #?#T ## """ """ # # """ ### | | ????# #???# #?#" ## """ """ # # """ + | | ??# # ##### #?# ## """ """=#* # """ # | | ??# #?# ## =%#% # # | | ??# #+##+##+### ############# # [ # + | | ??### # """ #????# # # # # | | ????# # """ #????# """ # # # # | | ????# # """ #????# """ # # # "" # # | | ????# # ??? #????# """ #### # S"" # | | ????########### ??? #????# #???#### "" # | | ??????????????##???##????# #??????####### | | ?????????????????????????####+################ | | ?????????????????????????# | | ?????????????????????##### | | ????????????????????? | | ?????????????????????????????????????????????????? | | ?????????????????????????????????????????????????? | | ?????????????????????????????????????????????????? | | ?????????????????????????????????????????????????? | | ?????????????????????????????????????????????????? | | ?????????????????????????????????????????????????? | +----------------------------------------------------+ Best States ------------- Heat Dissipation 31 Energy Generation 14 Energy Capacity 250 Matter Stores 300 Matter Capacity 300 Sight Range 16 Robot Scan Range 14 Terrain Scan Density 85 Additional Mass Support 6 Corruption Block 8 Propulsion Shielding 33 Evasion (%) 63 Recoil Reduction 2 Item Schematics ----------------- None Robot Schematics ------------------ None Fabricated ------------ Nothing Alien Tech Used ----------------- None Achievements -------------- None Challenges ------------ None Game ------ Seed CorruptionCargoScrapsphere Manual? 0 Play Time 00:25:18 Cumulative 21.7 hours Start 2025.05.05 @ 18:52:00 End 2025.05.05 @ 19:15:00 Sessions 1 Manual Loads 0 Difficulty Rogue Special Mode None Game No. 38 Rogue 38 Adventurer 0 Explorer 0 Win Type - Total 0 Types 0/0/0/0/0/0/0/0/0 Lore% 8 Gallery% 29 Achievement% 27 Wizard Run 0 Options --------- Layout 1 ASCII 0 Keyboard 1 Movement Numpad Keybinds 0 Fullscreen 1 Font 32/SmallcapsGlow Map View 50x35 Zoom Use 0% Tactical HUD 0 Map Filters NONE Filters NONE Steam 1 RUN: a83b2da4-8cf8-4edc-9a5f-5af63662bf68